bitfinex/quotes_BTCUSD_20250303
["timestamp","ask_amount","ask_price","bid_price","bid_amount"]
[1741040022392,0.347467,86340.0,86323.0,0.3215]
[1741040022597,0.231681,86326.0,86323.0,0.3215]
[1741040022814,0.231679,86327.0,86323.0,0.3215]
[1741040023025,0.231681,86326.0,86323.0,0.3215]
[1741040023465,0.231652,86337.0,86323.0,0.3215]
[1741040023680,0.231675,86328.0,86323.0,0.3215]
[1741040023837,0.231685,86324.0,86323.0,0.3215]
[1741040024081,0.3,86346.0,86323.0,0.3215]
[1741040024286,0.231678,86327.0,86316.0,0.00028807]
[1741040024657,0.23169,86322.0,86316.0,0.23199407]
[1741040024831,0.23169,86323.0,86316.0,0.23199407]
[1741040025029,0.23169,86323.0,86317.0,0.231703]
[1741040025269,0.231661,86333.0,86316.0,0.00028807]
[1741040025493,0.231704,86317.0,86316.0,0.00028807]
[1741040026237,0.531704,86317.0,86316.0,0.00028807]
[1741040026439,0.723626,86317.0,86316.0,0.00028807]
[1741040027713,0.713626,86317.0,86316.0,0.00028807]
[1741040028611,0.231753,86299.0,86292.0,0.20855846]
[1741040028832,0.23187172,86299.0,86292.0,0.20855846]
[1741040028988,0.00011872,86299.0,86293.0,0.231768]
[1741040029203,0.00011872,86299.0,86295.0,0.231762]
[1741040029402,0.00011872,86299.0,86289.0,0.0003394]
[1741040029819,0.231776,86290.0,86289.0,0.0003394]
[1741040030193,0.00011872,86299.0,86289.0,0.0003394]
[1741040030368,0.231756,86298.0,86290.0,0.231774]
[1741040030521,0.00011872,86299.0,86298.0,0.231755]
[1741040031360,0.00011872,86299.0,86298.0,1.11961511]
[1741040031768,0.00011872,86299.0,86298.0,1.50071511]
[1741040031937,7.2e-07,86299.0,86298.0,1.50071511]
[1741040032137,0.0003394,86317.0,86316.0,0.231706]
[1741040032336,0.0003394,86317.0,86316.0,1.16862611]
[1741040033373,0.0003394,86317.0,86316.0,0.93692011]
[1741040033579,0.0003394,86317.0,86316.0,1.16862611]
[1741040033783,0.0003394,86317.0,86316.0,1.06966611]
[1741040034452,0.0003394,86317.0,86316.0,1.36966611]
[1741040035672,0.0003394,86317.0,86316.0,1.41726611]
[1741040036279,4e-07,86317.0,86316.0,1.41726611]
[1741040036609,0.10263535,86349.0,86316.0,1.41726611]
[1741040036610,0.10263535,86349.0,86348.0,0.23162]
[1741040036816,0.10275434,86349.0,86348.0,0.55312]
[1741040037138,0.10275434,86349.0,86348.0,0.3215]
[1741040037815,0.00011899,86349.0,86348.0,0.3215]
[1741040038114,0.23173699,86349.0,86348.0,0.3215]
[1741040038497,0.23173699,86349.0,86327.0,0.231676]
[1741040038498,0.231668,86331.0,86329.0,0.09892]
[1741040038652,0.231669,86330.0,86329.0,0.09892]
[1741040039028,0.231682,86325.0,86324.0,0.3215]
[1741040040386,0.231722,86310.0,86309.0,0.3215]
[1741040040536,1.158119,86347.0,86309.0,0.3215]
[1741040040537,0.09892,86348.0,86309.0,0.3215]
[1741040040757,0.3,86329.0,86309.0,0.3215]
[1741040040955,0.347503,86330.0,86310.0,0.3]
[1741040041174,0.3234,86346.0,86310.0,0.3]
[1741040041371,0.231719,86312.0,86310.0,0.3]
[1741040041576,0.347491,86333.0,86310.0,0.3]
[1741040041777,0.00135821,86332.0,86310.0,0.3]
[1741040041981,0.23172,86312.0,86309.0,0.3215]
[1741040042183,0.231722,86310.0,86309.0,0.3215]
[1741040042382,0.0003394,86325.0,86294.0,0.09892]
[1741040042585,0.0003394,86325.0,86310.0,0.23172]
[1741040042783,0.2317,86319.0,86310.0,0.23172]
[1741040043032,0.2317,86319.0,86312.0,0.231717]
[1741040043409,0.2317,86319.0,86310.0,0.23172]
[1741040043410,0.0003394,86325.0,86295.0,0.3]
[1741040043618,0.0003394,86325.0,86294.0,0.42042]
[1741040043787,0.231747,86301.0,86296.0,0.3215]
[1741040043994,0.231749,86301.0,86297.0,0.3]
[1741040044233,0.0795,86324.0,86290.0,0.3215]
[1741040044380,0.231751,86300.0,86293.0,0.231767]
[1741040044577,0.01268394,86323.0,86290.0,0.3215]
[1741040044827,0.00135821,86323.0,86304.0,0.231736]
[1741040044972,0.3,86329.0,86308.0,0.231727]
[1741040045177,0.00135821,86324.0,86293.0,0.3]
[1741040045510,0.23175,86300.0,86294.0,0.231765]
[1741040045706,0.23175,86300.0,86293.0,0.3]
[1741040045707,0.231745,86302.0,86295.0,0.23176]
[1741040045934,0.231727,86309.0,86293.0,0.3]
[1741040046156,0.3,86332.0,86305.0,0.231734]
[1741040046431,0.23171,86315.0,86307.0,0.23173]
[1741040046637,0.231701,86319.0,86313.0,0.231712]
[1741040046834,0.231708,86316.0,86310.0,0.231722]
[1741040047058,0.231672,86329.0,86324.0,0.231685]
[1741040047269,0.347432,86348.0,86324.0,0.231685]
[1741040047270,0.279301,86356.0,86324.0,0.853185]
[1741040047546,4e-07,86325.0,86324.0,0.979385]
[1741040047966,4e-07,86325.0,86324.0,0.900485]
[1741040048368,0.00011523,86325.0,86324.0,0.553185]
[1741040048877,0.00011523,86325.0,86324.0,0.3215]
[1741040049131,0.23179723,86325.0,86324.0,0.3215]
[1741040049399,0.00011523,86325.0,86324.0,0.3215]
[1741040049780,0.23179723,86325.0,86324.0,0.3215]
[1741040050746,0.23179723,86325.0,86312.0,0.330597]
[1741040050747,0.231698,86320.0,86312.0,0.330597]
[1741040050993,0.23179723,86325.0,86312.0,0.330597]
[1741040050994,0.231706,86317.0,86312.0,0.09888]
[1741040051228,0.231731,86307.0,86289.0,0.2321184]
[1741040051533,0.00011523,86325.0,86289.0,0.0003394]
[1741040051683,0.231749,86300.0,86289.0,0.0003394]
[1741040051851,0.231749,86301.0,86289.0,0.00196164]
[1741040052047,0.231741,86303.0,86289.0,0.00196164]
[1741040052254,0.00011523,86325.0,86289.0,0.00196164]
[1741040052255,0.00011523,86325.0,86292.0,0.231769]
[1741040052454,0.231747,86301.0,86290.0,0.231776]
[1741040052657,0.3,86321.0,86289.0,0.0003394]
[1741040052862,0.23175,86300.0,86289.0,0.00196164]
[1741040053114,0.23175,86300.0,86294.0,0.231763]
[1741040053314,0.231744,86302.0,86295.0,0.231761]
[1741040053473,0.231754,86299.0,86293.0,0.231768]
[1741040053679,0.231754,86299.0,86294.0,0.231765]
[1741040053875,0.23174,86304.0,86292.0,0.23177]
[1741040054076,0.347537,86322.0,86289.0,0.0003394]
[1741040054278,0.231751,86300.0,86295.0,0.23176]
[1741040054673,0.231752,86299.0,86291.0,0.231773]
[1741040054903,4e-07,86325.0,86291.0,0.231773]
[1741040055077,0.231751,86300.0,86294.0,0.231764]
[1741040055276,4e-07,86325.0,86289.0,0.00045812]
[1741040055468,0.231776,86290.0,86289.0,0.00045812]
[1741040057219,0.463404,86318.0,86289.0,0.00045812]
[1741040057425,0.00135821,86315.0,86289.0,0.00045812]
[1741040057664,0.00135821,86320.0,86295.0,0.231761]
[1741040057844,0.3,86309.0,86304.0,0.231738]
[1741040058037,4e-07,86325.0,86295.0,0.09884]
[1741040058219,4e-07,86325.0,86319.0,0.231696]
[1741040058427,4e-07,86325.0,86303.0,0.34761]
[1741040058628,0.3,86324.0,86303.0,0.33523183]
[1741040058906,0.3,86324.0,86321.0,0.231692]
[1741040059048,4e-07,86325.0,86324.0,0.231685]
[1741040059436,0.00011523,86325.0,86322.0,0.231688]
[1741040059637,0.00011523,86325.0,86324.0,0.231685]
[1741040060080,0.00011523,86325.0,86306.0,0.347598]
[1741040060283,0.3,86336.0,86307.0,0.00107399]
[1741040060464,0.231687,86324.0,86318.0,0.231699]
[1741040060859,0.231686,86324.0,86307.0,0.00011483]
[1741040061064,0.231681,86326.0,86320.0,0.231695]
[1741040061465,0.33428735,86337.0,86307.0,0.00011483]
[1741040061466,0.3,86336.0,86307.0,0.00011483]
[1741040061684,0.3,86336.0,86331.0,0.46333]
[1741040061865,0.3,86336.0,86331.0,0.231665]
[1741040062073,0.3,86336.0,86335.0,0.231655]
[1741040062277,0.10263535,86337.0,86336.0,0.231653]
[1741040062855,0.3,86358.0,86323.0,0.0757]
[1741040063028,0.10263535,86366.0,86324.0,0.00107282]
[1741040063301,0.10263535,86366.0,86365.0,0.231575]
[1741040063302,0.10303199,86366.0,86365.0,0.231575]
[1741040063470,0.10303199,86366.0,86362.0,0.231582]
[1741040063676,0.10303199,86366.0,86363.0,0.230579]
[1741040064071,0.10303199,86366.0,86362.0,0.231582]
[1741040064278,0.10303199,86366.0,86365.0,0.231575]
[1741040066284,6.9e-07,86367.0,86366.0,0.580772]
[1741040066488,5.6e-07,86367.0,86366.0,0.680772]
[1741040067797,5.6e-07,86367.0,86366.0,0.580772]
[1741040068004,5.6e-07,86367.0,86366.0,0.680772]
[1741040068263,1e-06,86382.0,86381.0,0.310232]
[1741040068445,1e-06,86382.0,86381.0,0.408992]
[1741040068989,1e-06,86382.0,86381.0,0.708992]
[1741040069194,1e-06,86382.0,86381.0,0.857992]
[1741040069441,0.0003396,86404.0,86395.0,0.231494]
[1741040069442,1e-06,86396.0,86395.0,0.231494]
[1741040069640,0.00011983,86396.0,86395.0,0.531494]
[1741040070020,6.3e-07,86406.0,86405.0,0.231468]
[1741040070382,6.3e-07,86406.0,86405.0,0.330228]
[1741040073945,6.3e-07,86406.0,86405.0,0.330148]
[1741040075299,6.3e-07,86406.0,86403.0,0.09868]
[1741040075523,0.2317796,86416.0,86405.0,0.231468]
[1741040075683,0.2317796,86416.0,86403.0,0.330153]
[1741040075684,0.0003396,86416.0,86403.0,0.09868]
[1741040075891,0.0003396,86416.0,86415.0,0.231441]
[1741040076699,0.0003396,86416.0,86403.0,0.09868]
[1741040076940,0.0003396,86416.0,86410.0,0.231452]
[1741040077142,0.0003396,86416.0,86383.0,0.005]
[1741040077143,0.23147,86404.0,86383.0,0.005]
[1741040077363,0.0003396,86416.0,86387.0,0.00011883]
[1741040077548,0.3,86412.0,86387.0,0.00118949]
[1741040077867,0.0003396,86416.0,86396.0,0.231492]
[1741040077868,0.231476,86402.0,86396.0,0.231492]
[1741040078204,0.23148,86401.0,86395.0,0.231494]
[1741040078432,0.231479,86401.0,86395.0,0.0003392]
[1741040078647,0.231483,86400.0,86395.0,0.0003392]
[1741040078846,0.231472,86404.0,86395.0,0.0003392]
[1741040079048,0.231476,86402.0,86396.0,0.231491]
[1741040079244,0.0001696,86406.0,86395.0,0.0003392]
[1741040079494,0.23148,86401.0,86395.0,0.0003392]
[1741040079798,0.231481,86400.0,86395.0,0.0003392]
[1741040080005,0.231488,86398.0,86395.0,0.0003392]
[1741040080220,0.231477,86402.0,86396.0,0.23149]
[1741040080516,0.231473,86403.0,86396.0,0.23149]
[1741040080765,0.231473,86403.0,86395.0,0.0003392]
[1741040080766,0.231482,86400.0,86395.0,0.0003392]
[1741040080939,0.231473,86403.0,86397.0,0.231488]
[1741040081145,0.231473,86403.0,86395.0,0.2318322]
[1741040081357,0.231488,86398.0,86395.0,0.0003392]
[1741040081784,0.0001696,86406.0,86400.0,0.23148]
[1741040081899,0.0001696,86406.0,86402.0,0.231473]
[1741040082103,0.0001696,86406.0,86405.0,0.231468]
[1741040082439,0.231472,86404.0,86398.0,0.231485]
[1741040082626,0.231471,86404.0,86399.0,0.231484]
[1741040082830,0.0001696,86406.0,86395.0,0.0003392]
[1741040083008,0.231485,86399.0,86395.0,0.0003392]
[1741040083212,0.2316356,86406.0,86395.0,0.0003392]
[1741040083428,0.0001696,86406.0,86395.0,0.2318312]
[1741040083761,0.02141496,86405.0,86395.0,0.0003392]
[1741040083958,0.231492,86396.0,86395.0,0.0003392]
[1741040084573,0.0001696,86406.0,86396.0,0.231492]
[1741040084899,0.0001696,86406.0,86405.0,0.231468]
[1741040085670,0.0001696,86406.0,86405.0,0.330068]
[1741040087603,0.0001696,86406.0,86405.0,0.0986]
[1741040087806,0.02333186,86406.0,86395.0,0.0003392]
[1741040088126,0.231473,86403.0,86397.0,0.231488]
[1741040088350,0.0001696,86406.0,86395.0,0.0003392]
[1741040088546,0.0001696,86406.0,86396.0,0.231492]
[1741040088750,0.0001696,86406.0,86397.0,0.00107049]
[1741040088969,0.0001696,86406.0,86395.0,0.00140972]
[1741040089107,0.23147,86405.0,86399.0,0.231483]
[1741040089312,0.0001696,86406.0,86399.0,0.231483]
[1741040089507,0.231468,86405.0,86395.0,0.0003392]
[1741040089734,0.0001696,86406.0,86396.0,0.231492]
[1741040089933,0.0001696,86406.0,86395.0,0.2318312]
[1741040090115,0.231492,86396.0,86395.0,0.0003392]
[1741040092420,0.531492,86396.0,86395.0,0.0003392]
[1741040094809,0.231533,86381.0,86375.0,0.231546]
[1741040094984,0.231536,86380.0,86372.0,0.231554]
[1741040095192,0.0789,86398.0,86342.0,0.0825]
[1741040095373,0.231561,86371.0,86364.0,0.231576]
[1741040095716,0.231562,86370.0,86363.0,0.231578]
[1741040096078,0.231566,86369.0,86354.0,0.04549664]
[1741040096274,0.3,86388.0,86369.0,0.231563]
[1741040096593,0.0467,86395.0,86355.0,0.09963227]
[1741040096594,0.231524,86384.0,86355.0,0.09856]
[1741040096793,0.0001696,86406.0,86356.0,0.00107183]
[1741040096794,0.23151,86390.0,86356.0,0.00107183]
[1741040097125,0.3,86384.0,86378.0,0.231538]
[1741040097295,0.3,86384.0,86355.0,0.09856]
[1741040097496,0.3,86384.0,86379.0,0.231537]
[1741040097725,0.3,86384.0,86363.0,0.23158]
[1741040098020,0.3,86384.0,86364.0,0.00107182]
[1741040098218,0.3,86386.0,86381.0,0.23153]
[1741040098438,0.231501,86393.0,86356.0,0.463198]
[1741040098639,0.231516,86387.0,86381.0,0.20552999]
[1741040098839,0.231516,86388.0,86381.0,0.231531]
[1741040099013,0.231516,86387.0,86379.0,0.231536]
[1741040099347,0.231522,86385.0,86378.0,0.231539]
[1741040099504,0.3,86395.0,86380.0,0.231533]
[1741040099732,0.231494,86396.0,86381.0,0.0996312]
[1741040099916,0.231493,86396.0,86389.0,0.231508]
[1741040100118,0.231497,86394.0,86387.0,0.46303]
[1741040100338,0.00815042,86429.0,86382.0,0.09856]
[1741040100542,0.0020254,86428.0,86423.0,0.231419]
[1741040100719,0.00826922,86429.0,86415.0,0.09852]
[1741040100720,0.231438,86416.0,86415.0,0.09852]
[1741040100958,0.3,86415.0,86363.0,0.1]
[1741040101250,0.00202543,86414.0,86376.0,0.09959081]
[1741040101595,0.00826922,86429.0,86362.0,0.0751]
[1741040101596,0.3,86408.0,86362.0,0.0751]
[1741040101876,0.231541,86378.0,86363.0,0.00107154]
[1741040102077,0.231537,86380.0,86363.0,0.09959154]
[1741040102235,0.3,86397.0,86363.0,0.09959154]
[1741040102435,0.3,86397.0,86363.0,0.09852]
[1741040102436,0.06674806,86396.0,86363.0,0.09852]
[1741040102633,0.07972586,86396.0,86363.0,0.09852]
[1741040102839,0.07972586,86396.0,86344.0,0.0496]
[1741040102840,0.452004,86395.0,86344.0,0.281229]
[1741040103061,0.231615,86351.0,86347.0,0.00107223]
[1741040103284,0.3,86371.0,86352.0,0.231608]
[1741040103528,0.2,86395.0,86352.0,0.231608]
[1741040103529,0.00202642,86370.0,86352.0,0.231608]
[1741040103698,0.231628,86345.0,86344.0,0.00039664]
[1741040103905,0.231607,86353.0,86344.0,0.09891664]
[1741040104109,0.231626,86346.0,86345.0,0.09852]
[1741040104278,0.231626,86346.0,86344.0,0.00039664]
[1741040104279,0.231628,86345.0,86344.0,0.00039664]
[1741040104486,0.231628,86345.0,86344.0,0.09891664]
[1741040105005,0.531621,86348.0,86344.0,0.09891664]
[1741040105200,0.231599,86356.0,86349.0,0.231615]
[1741040105382,0.231617,86350.0,86345.0,0.231628]
[1741040105552,0.0823,86376.0,86353.0,0.231606]
[1741040105749,0.0102566,86375.0,86355.0,0.231601]
[1741040106062,0.00202657,86379.0,86344.0,0.09891664]
[1741040106266,0.231608,86353.0,86347.0,0.231623]
[1741040106471,0.231625,86347.0,86344.0,0.09891664]
[1741040106890,0.1,86382.0,86347.0,0.231622]
[1741040107097,0.00202673,86381.0,86347.0,0.231622]
[1741040107301,0.231577,86364.0,86344.0,0.09891664]
[1741040107498,0.02157764,86385.0,86354.0,0.231604]
[1741040107835,0.00202655,86384.0,86344.0,0.09891664]
[1741040107978,0.00202655,86384.0,86347.0,0.0788]
[1741040108179,0.3,86374.0,86344.0,0.09891664]
[1741040108384,0.3,86372.0,86344.0,0.09891664]
[1741040108684,0.231628,86345.0,86344.0,0.09891664]
[1741040108884,0.00202654,86371.0,86344.0,0.09891664]
[1741040108885,0.3,86374.0,86344.0,0.09891664]
[1741040109104,0.00202666,86372.0,86344.0,0.09891664]
[1741040109264,0.00202662,86391.0,86345.0,0.348516]
[1741040109464,0.231603,86355.0,86349.0,0.231615]
[1741040109666,0.4819,86396.0,86359.0,0.231591]
[1741040109930,0.00202635,86394.0,86344.0,0.09891664]
[1741040110078,0.00202635,86394.0,86369.0,0.231563]
[1741040110281,0.00202635,86394.0,86370.0,0.09852]
[1741040110488,0.531559,86371.0,86370.0,0.09852]
[1741040111571,0.531559,86371.0,86370.0,0.09863876]
[1741040111776,0.6310256,86371.0,86370.0,7.6e-07]
[1741040112964,0.7060256,86371.0,86370.0,7.6e-07]
[1741040113658,0.531602,86355.0,86354.0,0.06952075]
[1741040113859,0.231643,86340.0,86336.0,0.09852]
[1741040114161,0.231646,86339.0,86336.0,0.09852]
[1741040114360,0.3,86349.0,86348.0,0.23162]
[1741040114535,0.3,86349.0,86345.0,0.231628]
[1741040114718,0.3,86349.0,86347.0,0.231622]
[1741040115126,0.3,86349.0,86345.0,0.231627]
[1741040115323,0.3,86349.0,86341.0,0.231638]
[1741040115324,0.231624,86347.0,86341.0,0.231638]
[1741040115527,0.3,86351.0,86341.0,0.231638]
[1741040115724,0.347343,86370.0,86336.0,0.09852]
[1741040115725,0.3,86369.0,86336.0,0.09852]
[1741040115927,0.231594,86358.0,86352.0,0.231608]
[1741040116128,0.531596,86357.0,86348.0,0.3215]
[1741040116329,0.531596,86357.0,86351.0,0.231612]
[1741040116533,0.531596,86357.0,86349.0,0.231616]
[1741040116534,0.231595,86358.0,86352.0,0.231608]
[1741040116738,0.0826,86383.0,86348.0,0.553119]
[1741040117105,0.531618,86349.0,86348.0,0.3215]
[1741040117310,0.231653,86336.0,86327.0,0.3215]
[1741040117511,0.231653,86336.0,86327.0,0.41998]
[1741040117512,0.23070269,86336.0,86327.0,0.41998]
[1741040117698,0.23070269,86336.0,86295.0,0.0001698]
[1741040117699,0.23070269,86336.0,86321.0,0.09848]
[1741040117831,0.3,86342.0,86333.0,0.231658]
[1741040118029,0.531653,86336.0,86321.0,0.09848]
[1741040118238,0.531653,86336.0,86321.0,0.330171]
[1741040118472,0.531653,86336.0,86321.0,0.09848]
[1741040118693,0.531653,86336.0,86319.0,0.09848]
[1741040118694,0.62436849,86336.0,86319.0,0.09848]
[1741040119014,0.62436849,86336.0,86322.0,6.4e-07]
[1741040119015,0.531687,86323.0,86322.0,6.4e-07]
[1741040119205,0.531687,86323.0,86322.0,0.00011951]
[1741040119771,0.531725,86309.0,86308.0,0.005329]
[1741040119995,0.3,86309.0,86308.0,0.00544383]
[1741040120198,0.531725,86309.0,86308.0,0.00544383]
[1741040120436,0.5848975,86309.0,86308.0,0.00544383]
[1741040120643,0.531725,86309.0,86308.0,0.00544383]
[1741040120795,0.3,86309.0,86308.0,0.00544383]
[1741040121001,0.231698,86320.0,86314.0,0.23171]
[1741040121201,0.01816836,86340.0,86308.0,0.00544383]
[1741040121403,0.0020274,86339.0,86313.0,0.047]
[1741040121596,0.23166,86334.0,86328.0,0.231673]
[1741040121825,0.01816522,86356.0,86330.0,0.231667]
[1741040121996,0.231648,86338.0,86332.0,0.231661]
[1741040122198,0.231655,86336.0,86330.0,0.231667]
[1741040122399,0.231614,86351.0,86320.0,0.3215]
[1741040122681,0.347337,86372.0,86320.0,0.3215]
[1741040122682,0.231585,86362.0,86322.0,0.0795]
[1741040122997,0.08586,86382.0,86324.0,0.347527]
[1741040123211,0.00202652,86381.0,86373.0,0.231552]
[1741040123364,0.231569,86367.0,86366.0,0.09848]
[1741040123542,0.10289343,86360.0,86359.0,0.221591]
[1741040123958,0.10289343,86360.0,86359.0,0.231591]
[1741040124161,0.10289343,86360.0,86357.0,0.09848]
[1741040124591,0.1030122,86360.0,86359.0,0.231591]
[1741040125553,0.1030122,86360.0,86359.0,0.281491]
[1741040126432,0.3346002,86360.0,86357.0,0.09848]
[1741040126576,0.1030122,86360.0,86357.0,0.09848]
[1741040126776,0.231594,86358.0,86357.0,0.09848]
[1741040126981,0.00011877,86360.0,86357.0,0.09848]
[1741040127238,0.23170877,86360.0,86357.0,0.09848]
[1741040127600,0.04632918,86359.0,86344.0,0.09848]
[1741040127807,0.30202669,86359.0,86327.0,0.0828]
[1741040128002,0.30202669,86359.0,86324.0,0.0486]
[1741040128003,0.231655,86335.0,86334.0,0.09844]
[1741040128297,0.3,86349.0,86334.0,0.09844]
[1741040128522,0.231649,86338.0,86333.0,0.231659]
[1741040128766,0.231642,86340.0,86329.0,0.09844]
[1741040128995,0.231642,86340.0,86330.0,0.231666]
[1741040129235,0.231642,86340.0,86332.0,0.231661]
[1741040129469,0.3,86342.0,86332.0,0.231661]
[1741040129698,0.3,86342.0,86329.0,0.09844]
[1741040129954,0.3,86342.0,86331.0,0.231666]
[1741040130201,0.3,86342.0,86340.0,0.231641]
[1741040130444,0.3,86342.0,86329.0,0.09844]
[1741040130445,0.3,86350.0,86329.0,0.09844]
[1741040130682,0.231648,86338.0,86332.0,0.231662]
[1741040130944,0.00202689,86349.0,86329.0,0.09844]
[1741040130945,0.1,86372.0,86336.0,0.231652]
[1741040131180,0.347364,86365.0,86338.0,0.231645]
[1741040131379,0.00214573,86360.0,86329.0,0.09844]
[1741040131887,0.231606,86354.0,86330.0,0.00107366]
[1741040133075,0.3,86346.0,86335.0,0.231654]
[1741040133311,0.3,86346.0,86343.0,0.231632]
[1741040133836,0.3,86346.0,86329.0,0.09844]
[1741040133837,0.00011877,86360.0,86359.0,0.231591]
[1741040134070,0.00011877,86360.0,86353.0,0.09844]
[1741040134340,0.231601,86356.0,86344.0,0.231629]
[1741040134584,0.231595,86358.0,86353.0,0.231605]
[1741040134821,0.00011877,86360.0,86359.0,0.231591]
[1741040135295,0.231552,86374.0,86359.0,0.599189]
[1741040135553,0.231518,86387.0,86362.0,0.0753]
[1741040135803,0.00039632,86374.0,86373.0,0.231553]
[1741040137219,0.00039632,86374.0,86373.0,0.553053]
[1741040137983,0.00039632,86374.0,86373.0,0.3215]
[1741040138204,0.00039632,86374.0,86373.0,0.553053]
[1741040140861,0.00039632,86374.0,86373.0,0.3215]
[1741040140991,0.00039632,86374.0,86373.0,0.553053]
[1741040142189,0.23194732,86374.0,86373.0,0.3215]
[1741040142986,0.30145125,86374.0,86373.0,0.3215]
[1741040143283,0.231569,86367.0,86366.0,0.09836]
[1741040144729,0.231569,86367.0,86360.0,0.3215]
[1741040144730,0.231567,86369.0,86360.0,0.3215]
[1741040144957,0.531586,86361.0,86360.0,0.3215]
[1741040145169,0.231623,86347.0,86346.0,0.3215]
[1741040146284,0.463239,86349.0,86346.0,0.3215]
[1741040146502,0.231623,86347.0,86346.0,0.3215]
[1741040146738,0.1,86388.0,86346.0,0.32161877]
[1741040146949,0.0467,86398.0,86346.0,0.32161877]
[1741040146950,0.231577,86365.0,86346.0,0.32161877]
[1741040147158,0.01176507,86386.0,86347.0,0.00162121]
[1741040147310,0.231601,86356.0,86348.0,0.3215]
[1741040147511,0.231586,86361.0,86356.0,0.231597]
[1741040147689,0.1,86394.0,86348.0,0.3215]
[1741040147690,0.231577,86365.0,86359.0,0.231589]
[1741040147893,0.0648122,86396.0,86360.0,0.3215]
[1741040148210,0.231517,86387.0,86381.0,0.23153]
[1741040148555,0.10289343,86391.0,86385.0,0.231519]
[1741040148689,0.10289343,86391.0,86388.0,0.231513]
[1741040148891,0.231515,86388.0,86380.0,0.231534]
[1741040149093,0.10289343,86391.0,86381.0,0.3215]
[1741040149296,0.231511,86389.0,86383.0,0.231524]
[1741040149520,0.231514,86388.0,86383.0,0.3215]
[1741040149721,0.10328975,86391.0,86383.0,0.3215]
[1741040149899,0.10328975,86391.0,86390.0,0.231508]
[1741040150097,0.10328975,86391.0,86390.0,0.553008]
[1741040150309,7.5e-07,86391.0,86390.0,1.093308]
[1741040150516,0.005,86423.0,86409.0,0.281057]
[1741040150700,0.00511887,86410.0,86409.0,1.142857]
[1741040156247,0.00511887,86410.0,86409.0,0.3215]
[1741040156248,0.23657287,86410.0,86409.0,0.3215]
[1741040156447,0.00511887,86410.0,86407.0,0.09828]
[1741040156675,0.00511887,86410.0,86409.0,0.231457]
[1741040156987,0.00511887,86410.0,86409.0,0.552957]
[1741040157502,0.19881665,86426.0,86409.0,0.3215]
[1741040157831,0.00832002,86429.0,86409.0,0.3215]
[1741040157942,0.00832002,86429.0,86428.0,0.231406]
[1741040158143,0.00832002,86429.0,86428.0,0.552906]
[1741040160420,2e-08,86429.0,86428.0,1.093206]
[1741040161179,0.0001697,86436.0,86433.0,0.231393]
[1741040161387,4e-07,86437.0,86436.0,0.531385]
[1741040161556,4e-07,86437.0,86436.0,1.473585]
[1741040161557,2e-07,86437.0,86436.0,1.473585]
[1741040162082,2e-07,86437.0,86436.0,1.271825]
[1741040162284,2e-07,86437.0,86436.0,0.96004]
[1741040162582,2e-07,86437.0,86436.0,0.41974]
[1741040162841,0.2313822,86437.0,86436.0,0.41974]
[1741040163042,2e-07,86437.0,86436.0,0.651125]
[1741040163541,2e-07,86437.0,86436.0,0.41974]
[1741040163663,0.2313822,86437.0,86436.0,0.41974]
[1741040163866,2e-07,86437.0,86436.0,0.41974]
[1741040164092,2e-07,86437.0,86436.0,0.651125]
[1741040164508,2e-07,86437.0,86436.0,1.271825]
[1741040165317,2e-07,86437.0,86436.0,0.8618]
[1741040165514,2e-07,86437.0,86436.0,0.3215]
[1741040165716,2e-07,86437.0,86436.0,0.552885]
[1741040166106,0.0001697,86437.0,86436.0,0.552885]
[1741040166325,0.0001697,86437.0,86436.0,1.093185]
[1741040166686,0.0001697,86437.0,86436.0,1.222485]
[1741040167288,7e-07,86437.0,86436.0,1.522485]
[1741040167553,0.2380924,86450.0,86449.0,0.23135]
[1741040167744,0.1880924,86450.0,86449.0,1.09315]
[1741040168507,0.1880924,86450.0,86449.0,1.19131]
[1741040169148,0.1880924,86450.0,86449.0,0.8618]
[1741040169351,0.1880924,86450.0,86449.0,0.95996]
[1741040169552,0.1880924,86450.0,86449.0,0.65101]
[1741040169710,0.1880924,86450.0,86449.0,0.41966]
[1741040169910,0.4194394,86450.0,86449.0,0.41966]
[1741040170123,0.1880924,86450.0,86449.0,0.41966]
[1741040170336,0.20954527,86450.0,86449.0,0.41966]
[1741040170549,0.20954527,86450.0,86449.0,0.65101]
[1741040170800,0.44089227,86450.0,86449.0,0.41966]
[1741040171203,0.20954527,86450.0,86449.0,0.41966]
[1741040171402,0.44089227,86450.0,86449.0,0.41966]
[1741040171655,0.20954527,86450.0,86449.0,0.41966]
[1741040172376,0.20954527,86450.0,86449.0,0.65101]
[1741040172977,0.20954527,86450.0,86449.0,1.19131]
[1741040173183,0.20954527,86450.0,86449.0,0.95996]
[1741040173632,0.005,86451.0,86449.0,0.3215]
[1741040173805,0.531355,86447.0,86446.0,0.09816]
[1741040174414,0.005,86451.0,86450.0,0.231347]
[1741040174615,1e-06,86451.0,86450.0,1.211]
[1741040174884,0.0007277,86466.0,86465.0,0.231307]
[1741040174885,9e-07,86466.0,86465.0,0.231307]
[1741040175447,0.00011968,86466.0,86465.0,0.231307]
[1741040177062,6.8e-07,86466.0,86465.0,1.475207]
[1741040177280,6.8e-07,86466.0,86465.0,1.575207]
[1741040177767,1.8e-07,86466.0,86465.0,1.623607]
[1741040177967,1.8e-07,86478.0,86477.0,0.531275]
[1741040178183,3e-08,86478.0,86477.0,1.673295]
[1741040178381,3e-08,86478.0,86477.0,1.721695]
[1741040180028,3e-08,86478.0,86477.0,1.621695]
[1741040181143,3e-08,86478.0,86477.0,1.721695]
[1741040181976,0.005,86505.0,86497.0,0.4821]
[1741040181977,6e-07,86505.0,86497.0,0.4821]
[1741040182179,6e-07,86505.0,86504.0,0.731203]
[1741040182420,9.1e-07,86519.0,86518.0,0.613265]
[1741040182637,9.1e-07,86519.0,86518.0,1.50334529]